bitfinex-derivatives/quotes_BTCF0:USTF0_20260104
["timestamp","ask_amount","ask_price","bid_price","bid_amount"]
[1767491031788,0.010984,91079.0,91047.0,0.35736]
[1767491031789,0.010984,91079.0,91058.0,0.010986]
[1767491031994,0.10636821,91079.0,91062.0,0.00016468]
[1767491032489,0.010984,91076.0,91062.0,0.00016468]
[1767491033294,0.09538421,91079.0,91062.0,0.00016468]
[1767491035290,0.00016468,91089.0,91068.0,0.10283238]
[1767491035491,0.09336,91088.0,91077.0,0.10283238]
[1767491035797,0.09336,91088.0,91077.0,0.09050679]
[1767491036096,0.09336,91088.0,91074.0,0.01232559]
[1767491036287,0.09336,91088.0,91071.0,0.09050679]
[1767491036489,0.09538421,91087.0,91063.0,0.010986]
[1767491036790,0.09538421,91082.0,91063.0,0.010986]
[1767491037193,0.10636821,91081.0,91062.0,0.00016468]
[1767491038500,0.010984,91076.0,91062.0,0.00016468]
[1767491039091,0.00016468,91089.0,91051.0,0.09050679]
[1767491039092,0.18144284,91072.0,91051.0,0.09050679]
[1767491039295,0.19242784,91072.0,91051.0,0.09050679]
[1767491039899,0.09538421,91072.0,91053.0,0.010987]
[1767491040401,0.00016468,91072.0,91053.0,0.10137099]
[1767491040601,0.00016468,91072.0,91054.0,0.01083378]
[1767491040902,0.00016468,91072.0,91055.0,0.09053721]
[1767491041102,0.00016468,91072.0,91055.0,0.10137099]
[1767491041305,0.00016468,91072.0,91059.0,0.010986]
[1767491041505,0.00016468,91072.0,91056.0,0.010987]
[1767491043706,0.00016468,91072.0,91061.0,0.01083378]
[1767491043895,0.00016468,91072.0,91061.0,0.02181978]
[1767491044805,0.00016468,91072.0,91063.0,0.010986]
[1767491045004,0.00016468,91072.0,91061.0,0.01083378]
[1767491045206,0.00016468,91072.0,91062.0,0.010986]
[1767491048893,0.00016468,91072.0,91062.0,0.11235699]
[1767491050305,0.00219518,91109.0,91086.0,0.01083378]
[1767491050505,0.12436012,91108.0,91094.0,0.10137099]
[1767491050711,0.12436012,91108.0,91099.0,0.10137099]
[1767491050712,0.03096012,91107.0,91099.0,0.10137099]
[1767491050908,0.0934,91108.0,91099.0,0.10137099]
[1767491051206,0.08605863,91120.0,91101.0,0.010981]
[1767491051207,0.00016468,91113.0,91101.0,0.010981]
[1767491051406,0.09356468,91113.0,91103.0,0.010981]
[1767491051706,0.09356468,91113.0,91104.0,0.010981]
[1767491052208,0.00016468,91113.0,91101.0,0.10137099]
[1767491053324,0.00016468,91113.0,91102.0,0.010981]
[1767491055005,0.00016468,91113.0,91103.0,0.01083378]
[1767491055204,0.00016468,91113.0,91104.0,0.09053721]
[1767491055508,0.010978,91127.0,91100.0,0.08605863]
[1767491055509,0.010978,91127.0,91106.0,0.01083378]
[1767491055703,0.09336,91126.0,91109.0,0.09053721]
[1767491058111,0.09336,91126.0,91112.0,0.10137099]
[1767491060703,0.09336,91126.0,91114.0,0.10137099]
[1767491060902,0.09336,91126.0,91115.0,0.10137099]
[1767491064811,0.09336,91126.0,91115.0,0.09053721]
[1767491065114,0.010978,91125.0,91115.0,0.09053721]
[1767491067113,0.09336,91126.0,91115.0,0.10137099]
[1767491067315,0.00204519,91146.0,91125.0,0.09053721]
[1767491067513,0.104337,91140.0,91125.0,0.09053721]
[1767491067714,0.010977,91138.0,91125.0,0.09053721]
[1767491068612,0.010977,91136.0,91125.0,0.09053721]
[1767491069517,0.19039563,91140.0,91125.0,0.09053721]
[1767491069718,0.104337,91140.0,91125.0,0.09053721]
[1767491070221,0.010977,91138.0,91128.0,0.10207664]
[1767491071416,0.010977,91135.0,91122.0,0.00016468]
[1767491072323,0.010978,91133.0,91122.0,0.00016468]
[1767491073423,0.010978,91133.0,91122.0,0.01264447]
[1767491074418,0.17941863,91140.0,91122.0,0.01264447]
[1767491074419,0.010977,91137.0,91122.0,0.01264447]
[1767491074725,0.010977,91137.0,91124.0,0.01247979]
[1767491076435,0.17941863,91140.0,91122.0,0.00016468]
[1767491076436,0.09336,91140.0,91131.0,0.01247979]
[1767491076728,0.09336,91140.0,91131.0,0.10262983]
[1767491077329,0.09336,91140.0,91128.0,0.01247979]
[1767491077334,0.010977,91137.0,91128.0,0.01247979]
[1767491078624,0.104337,91140.0,91128.0,0.01247979]
[1767491078824,0.104337,91140.0,91124.0,0.10262983]
[1767491079034,0.010977,91138.0,91125.0,0.10262983]
[1767491079535,0.010977,91138.0,91126.0,0.01247979]
[1767491080335,0.010977,91138.0,91126.0,0.10262983]
[1767491080828,0.09336,91140.0,91130.0,0.10262983]
[1767491081631,0.09332,91147.0,91137.0,0.01247979]
[1767491081928,0.09332,91147.0,91133.0,0.01247979]
[1767491082135,0.010976,91145.0,91133.0,0.01247979]
[1767491083120,0.010976,91146.0,91133.0,0.10262983]
[1767491083325,0.010976,91146.0,91134.0,0.01247979]
[1767491083734,0.00016459,91148.0,91138.0,0.01247979]
[1767491083931,0.00016459,91148.0,91139.0,0.01247979]
[1767491084428,0.010976,91146.0,91139.0,0.01247979]
[1767491085332,0.00016459,91148.0,91138.0,0.09015004]
[1767491085527,0.00016459,91148.0,91138.0,0.10262983]
[1767491085733,0.00016459,91148.0,91128.0,0.09703663]
[1767491085734,0.010976,91145.0,91128.0,0.09703663]
[1767491087828,0.010976,91145.0,91129.0,0.01109158]
[1767491088032,0.010976,91145.0,91130.0,0.01109158]
[1767491088228,0.010976,91145.0,91131.0,0.01109158]
[1767491088932,0.00016459,91148.0,91131.0,0.01109158]
[1767491089236,0.04132197,91147.0,91132.0,0.01097485]
[1767491089437,0.010976,91147.0,91132.0,0.01097485]
[1767491091639,0.00016459,91148.0,91132.0,0.01097485]
[1767491091640,0.010976,91145.0,91132.0,0.01097485]
[1767491092938,0.01114059,91148.0,91132.0,0.01097485]
[1767491093139,0.03035151,91147.0,91132.0,0.01097485]
[1767491093337,0.010976,91146.0,91132.0,0.01097485]
[1767491094740,0.00016459,91148.0,91132.0,0.01097485]
[1767491094943,0.0303589,91147.0,91132.0,0.01097485]
[1767491095143,0.00016459,91148.0,91132.0,0.01097485]
[1767491095345,0.03036538,91147.0,91132.0,0.01097485]
[1767491095541,0.00016459,91148.0,91132.0,0.01097485]
[1767491095741,0.03036531,91147.0,91132.0,0.01097485]
[1767491095946,0.00016459,91148.0,91132.0,0.01097485]
[1767491096244,0.03036573,91147.0,91132.0,0.01097485]
[1767491096545,0.03036573,91146.0,91132.0,0.01097485]
[1767491096746,0.00016459,91148.0,91132.0,0.01097485]
[1767491097043,0.03037285,91147.0,91132.0,0.01097485]
[1767491097240,0.03038197,91146.0,91132.0,0.01097485]
[1767491097440,0.00016459,91148.0,91132.0,0.01097485]
[1767491097648,0.03038197,91147.0,91132.0,0.01097485]
[1767491097940,0.03038197,91146.0,91132.0,0.01097485]
[1767491098132,0.00016459,91148.0,91132.0,0.01097485]
[1767491098440,0.03038574,91147.0,91132.0,0.01097485]
[1767491098744,0.04136174,91146.0,91132.0,0.01097485]
[1767491098947,0.010976,91146.0,91132.0,0.01097485]
[1767491100447,0.00016459,91148.0,91132.0,0.01097485]
[1767491100648,0.0303822,91147.0,91132.0,0.01097485]
[1767491100848,0.0303822,91146.0,91132.0,0.01097485]
[1767491101049,0.00016459,91148.0,91132.0,0.01097485]
[1767491101244,0.0303817,91147.0,91132.0,0.01097485]
[1767491101446,0.0303817,91147.0,91123.0,0.09332]
[1767491101447,0.01304509,91139.0,91126.0,0.010978]
[1767491101649,0.00016459,91148.0,91133.0,0.1151108]
[1767491101952,0.03037576,91147.0,91136.0,0.01068623]
[1767491102140,5.9e-07,91148.0,91136.0,0.01068623]
[1767491102337,5.9e-07,91148.0,91137.0,0.010977]
[1767491102641,5.9e-07,91148.0,91136.0,0.01068623]
[1767491103353,5.9e-07,91148.0,91139.0,0.010977]
[1767491104756,0.09332,91158.0,91143.0,0.01072326]
[1767491105750,0.09332,91158.0,91142.0,0.09344757]
[1767491106650,0.09332,91158.0,91141.0,0.00016459]
[1767491108352,0.01304509,91157.0,91141.0,0.00016459]
[1767491111458,0.09332,91158.0,91142.0,0.00990462]
[1767491112757,0.09332,91158.0,91142.0,0.02088062]
[1767491113553,0.09332,91158.0,91143.0,0.00953792]
[1767491114253,0.00016459,91159.0,91145.0,0.00953792]
[1767491114457,0.20019022,91169.0,91148.0,0.010975]
[1767491114458,0.01304509,91166.0,91148.0,0.010975]
[1767491115158,0.01304509,91166.0,91148.0,0.02040136]
[1767491116264,0.01315449,91166.0,91148.0,0.02040136]
[1767491116561,0.01315449,91166.0,91151.0,0.010975]
[1767491117349,0.0001094,91166.0,91151.0,0.02018397]
[1767491117553,0.0001094,91166.0,91152.0,0.00924097]
[1767491117759,0.0001094,91166.0,91152.0,0.10268854]
[1767491117964,0.0001094,91166.0,91158.0,0.010974]
[1767491118359,0.0001094,91166.0,91155.0,0.00924097]
[1767491120661,0.01304509,91160.0,91141.0,0.00016459]
[1767491120965,0.01304509,91156.0,91142.0,0.09332]
[1767491121164,0.01304509,91150.0,91132.0,0.09332]
[1767491121354,0.010976,91144.0,91132.0,0.09332]
[1767491121551,0.01304509,91145.0,91132.0,0.09332]
[1767491121767,0.01304509,91145.0,91127.0,0.11323646]
[1767491121962,0.01304509,91145.0,91127.0,0.20655646]
[1767491122164,0.01304509,91145.0,91129.0,0.010978]
[1767491122364,0.01320968,91145.0,91129.0,0.010978]
[1767491122967,0.01320968,91145.0,91132.0,0.010978]
[1767491123358,0.00016459,91145.0,91132.0,0.010978]
[1767491123759,0.01320968,91145.0,91132.0,0.010978]
[1767491124067,0.00016459,91145.0,91132.0,0.010978]
[1767491125570,0.09332,91156.0,91141.0,0.010976]
[1767491125763,0.09332,91166.0,91150.0,0.010975]
[1767491126661,0.09332,91166.0,91152.0,0.010975]
[1767491126867,0.09332,91166.0,91153.0,0.01177075]
[1767491127065,0.09332,91166.0,91152.0,0.010975]
[1767491128271,0.10636509,91166.0,91152.0,0.010975]
[1767491129166,0.01304509,91163.0,91150.0,0.010975]
[1767491129367,0.01304509,91163.0,91153.0,0.010975]
[1767491130576,0.09370348,91164.0,91153.0,0.010975]
[1767491131777,0.09332,91166.0,91149.0,0.00016459]
[1767491131969,0.0001094,91167.0,91149.0,0.1021033]
[1767491132274,0.0001094,91167.0,91150.0,0.01139289]
[1767491133278,0.0001094,91167.0,91154.0,0.010975]
[1767491135282,0.0001094,91167.0,91151.0,0.010975]
[1767491136483,0.0001094,91167.0,91150.0,0.01139289]
[1767491136680,0.01155016,91166.0,91135.0,0.01080583]
[1767491136881,0.01155016,91154.0,91137.0,0.010977]
[1767491137075,0.01155016,91154.0,91139.0,0.010977]
[1767491137276,0.01155016,91154.0,91141.0,0.010976]
[1767491138584,0.01155016,91154.0,91144.0,0.010976]
[1767491139280,0.01155016,91154.0,91140.0,0.010976]
[1767491139479,0.01155016,91154.0,91142.0,0.010976]
[1767491140085,0.09328,91163.0,91153.0,0.010975]
[1767491142982,0.0001094,91167.0,91153.0,0.010975]
[1767491144376,0.0001094,91167.0,91156.0,0.010975]
[1767491144578,0.01155016,91162.0,91144.0,0.010976]
[1767491144778,0.01155016,91156.0,91144.0,0.010976]
[1767491145084,0.01155016,91156.0,91143.0,0.09328]
[1767491145085,0.09795425,91157.0,91143.0,0.09328]
[1767491145285,0.09795425,91157.0,91143.0,0.49328]
[1767491145487,0.09795425,91162.0,91144.0,0.010976]
[1767491146291,0.09795425,91162.0,91144.0,0.02088556]
[1767491148186,0.01165956,91167.0,91145.0,0.10857516]
[1767491148393,0.0001094,91167.0,91150.0,0.10857516]
[1767491148891,0.0001094,91167.0,91155.0,0.010975]
[1767491150391,0.0001094,91167.0,91152.0,0.010975]
[1767491152086,0.01165956,91167.0,91149.0,0.010975]
[1767491152288,0.01165956,91167.0,91151.0,0.010975]
[1767491155194,0.01165956,91167.0,91150.0,0.010975]
[1767491155195,0.01155016,91166.0,91150.0,0.010975]
[1767491155486,0.01155016,91166.0,91152.0,0.010975]
[1767491156292,0.01155016,91166.0,91149.0,0.010975]
[1767491156992,0.01155016,91166.0,91148.0,0.010976]
[1767491158097,0.02252416,91166.0,91148.0,0.010976]
[1767491158889,0.01155016,91165.0,91148.0,0.010976]
[1767491159893,0.01155016,91165.0,91150.0,0.010975]
[1767491160497,0.01155016,91165.0,91150.0,0.09685296]
[1767491161498,0.01066119,91144.0,91125.0,0.010978]
[1767491161687,0.01066119,91144.0,91123.0,0.2314913]
[1767491161688,0.01066119,91142.0,91124.0,0.010978]
[1767491162000,0.01066119,91142.0,91126.0,0.010978]
[1767491163200,0.01066119,91142.0,91130.0,0.08587796]
[1767491163587,0.09640387,91143.0,91130.0,0.08587796]
[1767491165293,0.00016459,91143.0,91131.0,0.010978]
[1767491165609,0.05873655,91175.0,91131.0,0.010978]
[1767491165610,0.09328,91163.0,91146.0,0.010976]
[1767491165787,0.09328,91163.0,91150.0,0.08587796]
[1767491169394,0.00016459,91166.0,91154.0,0.00565856]
[1767491169594,0.10390047,91183.0,91163.0,0.01663197]
[1767491169800,0.02999946,91182.0,91163.0,0.01663197]
[1767491170000,0.04066065,91181.0,91163.0,0.010974]
[1767491170305,0.04066065,91180.0,91163.0,0.010974]
[1767491170604,0.02999946,91179.0,91165.0,0.010973]
[1767491170805,0.02999946,91178.0,91165.0,0.010973]
[1767491170991,0.01066119,91180.0,91165.0,0.010973]
[1767491171894,0.01066119,91179.0,91165.0,0.010973]
[1767491172294,0.01066119,91179.0,91162.0,0.00016459]
[1767491172495,0.01066119,91179.0,91163.0,0.010974]
[1767491173106,0.09623928,91177.0,91162.0,0.00016459]
[1767491173297,0.10690047,91176.0,91162.0,0.00016459]
[1767491173605,0.01066119,91175.0,91162.0,0.00016459]
[1767491173798,0.10690047,91175.0,91162.0,0.00016459]
[1767491173994,0.01066119,91174.0,91162.0,0.00016459]
[1767491174809,0.10690047,91174.0,91162.0,0.00016459]
[1767491175105,0.01066119,91173.0,91162.0,0.00016459]
[1767491175892,0.10690047,91173.0,91162.0,0.00016459]
[1767491176092,0.01066119,91172.0,91162.0,0.00016459]
[1767491176503,0.01066119,91171.0,91152.0,0.010975]
[1767491176800,0.01066119,91161.0,91146.0,0.09328]
[1767491177508,0.01066119,91161.0,91150.0,0.08587796]
[1767491177905,0.10690047,91164.0,91150.0,0.08587796]
[1767491180609,0.01066119,91163.0,91146.0,0.104256]
[1767491180793,0.01066119,91162.0,91146.0,0.104256]
[1767491181306,0.01066119,91162.0,91146.0,0.010976]
[1767491181509,0.01066119,91162.0,91146.0,0.104256]
[1767491182414,0.01082578,91166.0,91150.0,0.08587796]
[1767491182612,0.01066119,91165.0,91150.0,0.08587796]
[1767491184511,0.10690047,91164.0,91149.0,0.010975]
[1767491184724,0.01066119,91163.0,91150.0,0.08587796]
[1767491185116,0.01066119,91163.0,91149.0,0.010975]
[1767491186012,0.01066119,91163.0,91146.0,0.104256]
[1767491186512,0.01066119,91163.0,91150.0,0.08587796]
[1767491186716,0.00016459,91166.0,91151.0,0.010975]
[1767491188215,0.00016459,91166.0,91150.0,0.08587796]
[1767491189016,0.010974,91165.0,91149.0,0.0944137]
[1767491189315,0.010974,91165.0,91150.0,0.08587796]
[1767491189815,0.00016459,91166.0,91150.0,0.08587796]
[1767491190115,0.00016459,91166.0,91153.0,0.010975]
[1767491190305,0.00016459,91166.0,91153.0,0.01452866]
[1767491191810,0.00016459,91166.0,91153.0,0.00355366]
[1767491192118,0.01113859,91166.0,91150.0,0.010975]
[1767491193320,0.01113859,91166.0,91150.0,0.09685296]
[1767491193909,0.010974,91164.0,91150.0,0.08587796]
[1767491195223,0.010974,91165.0,91151.0,0.010975]
[1767491197322,0.010974,91165.0,91151.0,0.0138478]
[1767491197819,0.010974,91165.0,91151.0,0.010975]
[1767491198125,0.10905772,91162.0,91142.0,0.0028728]
[1767491198308,0.00923918,91148.0,91129.0,0.09328]
[1767491198514,0.010976,91147.0,91129.0,0.09328]
[1767491198719,0.02021518,91147.0,91129.0,0.09328]
[1767491199312,0.02021518,91147.0,91129.0,0.09344459]
[1767491199509,0.02037977,91147.0,91129.0,0.09344459]
[1767491199919,0.02037977,91147.0,91130.0,0.010978]
[1767491200113,0.00016459,91147.0,91131.0,0.00276335]
[1767491200311,0.00016459,91147.0,91132.0,0.00276335]
[1767491200513,0.00016459,91147.0,91131.0,0.09992387]
[1767491200825,0.010976,91146.0,91131.0,0.09992387]
[1767491202613,0.00016459,91147.0,91131.0,0.09992387]
[1767491203622,0.010976,91146.0,91131.0,0.09992387]
[1767491203824,0.010976,91146.0,91130.0,0.00266225]
[1767491204020,0.010976,91146.0,91129.0,0.09344459]
[1767491204216,0.010976,91144.0,91129.0,0.09344459]
[1767491204519,0.010977,91141.0,91129.0,0.09344459]
[1767491205122,0.010976,91145.0,91129.0,0.09344459]
[1767491205327,0.010976,91145.0,91130.0,0.010978]
[1767491205529,0.00016459,91147.0,91130.0,0.010978]
[1767491207129,0.00016459,91147.0,91120.0,0.08587796]
[1767491207130,0.00923918,91131.0,91113.0,0.09992387]
[1767491207429,0.09981854,91132.0,91108.0,0.09992387]
[1767491207430,0.00923918,91129.0,91108.0,0.09992387]
[1767491207630,0.08587796,91121.0,91108.0,0.09992387]
[1767491208431,0.010979,91123.0,91107.0,0.09332]
[1767491208834,0.010979,91121.0,91107.0,0.09332]
[1767491209019,0.010979,91119.0,91107.0,0.09332]
[1767491209929,0.010979,91123.0,91107.0,0.09332]
[1767491210433,0.010979,91123.0,91107.0,0.09598093]
[1767491211134,0.010979,91123.0,91108.0,0.00266093]
[1767491211332,0.010979,91123.0,91109.0,0.00266093]
[1767491211532,0.010979,91123.0,91110.0,0.00274638]
[1767491213735,0.010979,91123.0,91109.0,0.09992387]
[1767491216242,0.00016459,91124.0,91109.0,0.09992387]
[1767491217140,0.010979,91123.0,91109.0,0.09992387]
[1767491219842,0.010979,91123.0,91109.0,0.10269396]
[1767491220642,0.00016459,91124.0,91110.0,0.00277009]
[1767491221338,0.010979,91123.0,91110.0,0.00277009]
[1767491221637,0.10010758,91123.0,91106.0,0.00016459]
[1767491221843,0.00957037,91122.0,91106.0,0.00016459]
[1767491222044,0.010979,91118.0,91106.0,0.00016459]
[1767491222439,0.01098,91111.0,91106.0,0.00016459]
[1767491222647,0.01098,91114.0,91097.0,0.09729494]
[1767491222842,0.01098,91114.0,91099.0,0.00276937]
[1767491223029,0.01098,91114.0,91100.0,0.00276937]
[1767491224139,0.11386937,91118.0,91100.0,0.00276937]
[1767491228551,0.11386937,91118.0,91101.0,0.010981]
[1767491229453,0.00957037,91117.0,91101.0,0.010981]
[1767491229854,0.02054937,91117.0,91101.0,0.010981]
[1767491230251,0.00957037,91117.0,91101.0,0.010981]
[1767491230664,0.00957037,91116.0,91101.0,0.010981]
[1767491231162,0.00957037,91116.0,91098.0,0.00016459]
[1767491231362,0.00957037,91116.0,91099.0,0.010981]
[1767491232665,0.01098,91115.0,91099.0,0.010981]
[1767491232868,0.00957037,91116.0,91099.0,0.010981]
[1767491233456,0.02055037,91116.0,91099.0,0.010981]
[1767491233665,0.00957037,91116.0,91099.0,0.010982]
[1767491234670,0.02055037,91116.0,91098.0,0.00016459]
[1767491235070,0.02055037,91116.0,91098.0,0.01114659]
[1767491235678,0.00957037,91115.0,91098.0,0.01114659]
[1767491236062,0.00957037,91115.0,91098.0,0.00016459]
[1767491236672,0.01098,91114.0,91098.0,0.01114659]
[1767491236873,0.00957037,91115.0,91098.0,0.01114659]
[1767491236874,0.02055037,91115.0,91098.0,0.01114659]
[1767491237178,0.00957037,91115.0,91098.0,0.01114659]
[1767491238064,0.00957037,91115.0,91098.0,0.00016459]
[1767491239274,0.00957037,91115.0,91099.0,0.010981]
[1767491239663,0.02055037,91114.0,91098.0,0.00016459]
[1767491240573,0.00957037,91114.0,91098.0,0.01114659]
[1767491240877,0.00957037,91114.0,91100.0,0.010981]
[1767491241069,0.00957037,91114.0,91102.0,0.010981]
[1767491241470,0.09053721,91115.0,91102.0,0.010981]
[1767491242373,0.00957037,91111.0,91099.0,0.010981]
[1767491242677,0.00957037,91111.0,91098.0,0.00016459]
[1767491243377,0.01098,91109.0,91098.0,0.00016459]
[1767491243678,0.00957037,91111.0,91098.0,0.00016459]
[1767491244570,0.02055037,91110.0,91098.0,0.00016459]
[1767491244770,0.00957037,91108.0,91092.0,0.010982]
[1767491245871,0.010981,91107.0,91092.0,0.01114659]
[1767491246175,0.00957037,91108.0,91092.0,0.00016459]
[1767491246176,0.00957037,91105.0,91092.0,0.00016459]
[1767491246380,0.00957037,91104.0,91092.0,0.00016459]
[1767491248474,0.00957037,91104.0,91092.0,0.01114659]
[1767491250974,0.0091876,91107.0,91092.0,0.01114659]
[1767491251176,0.10426428,91107.0,91092.0,0.01114659]
[1767491251381,0.0091876,91106.0,91092.0,0.01114659]
[1767491251583,0.00902128,91105.0,91092.0,0.01114659]
[1767491252192,0.00902128,91105.0,91094.0,0.01109829]
[1767491252478,0.00902128,91105.0,91096.0,0.010982]
[1767491252984,0.10238128,91108.0,91096.0,0.010982]
[1767491253283,0.00902128,91107.0,91096.0,0.010982]
[1767491254273,0.11847485,91127.0,91108.0,0.01098]
[1767491254580,0.00902128,91122.0,91106.0,0.010981]
[1767491254883,0.09336,91121.0,91109.0,0.01098]
[1767491255389,0.10238128,91121.0,91109.0,0.01098]
[1767491255975,0.10238128,91121.0,91106.0,0.010981]
[1767491256482,0.00902128,91119.0,91106.0,0.010981]
[1767491257086,0.00902128,91118.0,91106.0,0.010981]
[1767491257282,0.00902128,91118.0,91099.0,0.00333091]
[1767491257585,0.00902128,91118.0,91100.0,0.00331798]
[1767491257988,0.09336,91121.0,91102.0,0.00331798]
[1767491258886,0.09847557,91117.0,91097.0,0.104342]
[1767491259085,0.00902128,91115.0,91107.0,0.010981]
[1767491259283,0.00902128,91109.0,91090.0,0.09460039]
[1767491259585,0.10749685,91107.0,91093.0,0.09336]
[1767491259782,0.00902128,91106.0,91093.0,0.09336]
[1767491260088,0.10749685,91105.0,91093.0,0.104342]
[1767491261885,0.00902128,91104.0,91093.0,0.104342]
[1767491262290,0.00902128,91104.0,91093.0,0.010982]
[1767491262291,0.00902128,91103.0,91093.0,0.010982]
[1767491262997,0.10749685,91103.0,91093.0,0.010982]
[1767491263189,0.00902128,91102.0,91093.0,0.010982]
[1767491264894,0.00902128,91102.0,91095.0,0.010982]
[1767491265497,0.00902128,91102.0,91092.0,0.01114659]
[1767491268294,0.00902128,91102.0,91092.0,0.00016459]
[1767491276399,0.00902128,91092.0,91075.0,0.010984]
[1767491276704,0.00902128,91089.0,91075.0,0.010984]
[1767491277304,8.076e-05,91088.0,91075.0,0.010984]
[1767491282598,8.076e-05,91088.0,91078.0,0.010984]
[1767491285606,8.076e-05,91088.0,91080.0,0.010984]
[1767491287313,0.10683943,91082.0,91069.0,0.09336]
[1767491287515,0.00995441,91086.0,91072.0,0.010985]
[1767491289109,0.08602236,91082.0,91072.0,0.010985]
[1767491289310,0.00995441,91084.0,91069.0,0.104345]
[1767491290010,0.09688502,91085.0,91069.0,0.104345]
[1767491290210,0.08602236,91080.0,91069.0,0.104345]
[1767491290911,0.08602236,91080.0,91071.0,0.010985]
[1767491291411,0.01003517,91088.0,91073.0,0.010985]
[1767491291609,0.08602236,91083.0,91073.0,0.010985]
[1767491292006,0.01003517,91088.0,91073.0,0.010985]
[1767491293110,0.01003517,91088.0,91070.0,0.010985]
[1767491294307,0.08602236,91080.0,91070.0,0.010985]
[1767491294608,0.00995441,91079.0,91066.0,0.010985]
[1767491294812,0.00995441,91075.0,91062.0,0.010986]
[1767491296103,0.00995441,91075.0,91055.0,0.09874289]
[1767491296303,0.00995441,91075.0,91056.0,0.00556173]
[1767491296807,0.10700412,91078.0,91057.0,0.00556173]
[1767491297014,0.10700412,91078.0,91070.0,0.010985]
[1767491297312,0.00016469,91078.0,91070.0,0.010985]
[1767491298016,0.00995441,91055.0,91043.0,0.010988]
[1767491298212,9.144e-05,91054.0,91047.0,0.010988]
[1767491298515,9.144e-05,91054.0,91042.0,0.01110012]
[1767491299308,9.144e-05,91054.0,91042.0,0.00011212]
[1767491300211,9.144e-05,91054.0,91042.0,0.01110012]
[1767491300604,9.144e-05,91054.0,91042.0,0.00011212]
[1767491300820,0.09336,91074.0,91056.0,0.02080413]
[1767491301011,0.09336,91074.0,91059.0,0.010986]
[1767491301314,0.09336,91074.0,91060.0,0.00981713]
[1767491301707,0.09336,91074.0,91059.0,0.10412897]
[1767491301708,6.242e-05,91073.0,91059.0,0.10412897]
[1767491301913,6.242e-05,91073.0,91059.0,0.010986]
[1767491302608,6.242e-05,91073.0,91062.0,0.010986]
[1767491306406,6.242e-05,91073.0,91059.0,0.010986]
[1767491306608,6.242e-05,91073.0,91058.0,0.00998182]
[1767491306812,6.242e-05,91073.0,91058.0,0.02096782]
[1767491308006,6.242e-05,91073.0,91061.0,0.010986]
[1767491309216,0.0934,91081.0,91067.0,0.00981713]
[1767491309514,0.0934,91086.0,91070.0,0.00981713]
[1767491310018,0.0934,91086.0,91069.0,0.10412797]
[1767491311517,0.0934,91086.0,91071.0,0.010985]
[1767491312521,0.00016469,91087.0,91069.0,0.10219982]
[1767491312714,0.00016469,91087.0,91070.0,0.00905685]
[1767491313116,0.00016469,91087.0,91076.0,0.010984]
[1767491314914,9.1e-07,91079.0,91076.0,0.010984]
[1767491315620,9.1e-07,91079.0,91073.0,0.010985]
[1767491316219,0.00016469,91087.0,91073.0,0.010985]
[1767491319118,0.00016469,91087.0,91076.0,0.00905685]
[1767491319917,0.00016469,91087.0,91075.0,0.010984]
[1767491320117,0.00016469,91087.0,91073.0,0.10336306]
[1767491320318,0.00016469,91087.0,91074.0,0.010984]
[1767491321528,0.00016469,91087.0,91073.0,0.10336306]
[1767491321728,0.00016469,91087.0,91073.0,0.11434806]
[1767491323422,0.18613787,91099.0,91081.0,0.00905685]
[1767491324221,0.00982127,91098.0,91078.0,0.09430621]
[1767491324427,0.09277787,91098.0,91082.0,0.010984]
[1767491324734,0.00016469,91097.0,91082.0,0.010984]
[1767491324913,0.08603329,91092.0,91082.0,0.010984]
[1767491325520,0.08603329,91092.0,91079.0,0.00016469]
[1767491325829,0.08603329,91092.0,91080.0,0.010984]
[1767491326427,0.09277787,91093.0,91080.0,0.010984]
[1767491326727,0.08603329,91090.0,91080.0,0.010984]
[1767491329826,0.08603329,91090.0,91079.0,0.00016469]
[1767491331230,0.010983,91089.0,91079.0,0.00016469]
[1767491331633,0.010983,91089.0,91075.0,0.09336]
[1767491332419,0.02080427,91089.0,91075.0,0.09336]
[1767491332626,0.010983,91087.0,91075.0,0.09336]
[1767491334830,0.09701629,91085.0,91075.0,0.09336]
[1767491335028,0.010983,91085.0,91075.0,0.09336]
[1767491335821,0.010983,91085.0,91073.0,0.00016469]
[1767491336027,0.08603329,91080.0,91070.0,0.09336]
[1767491336236,0.08603329,91080.0,91071.0,0.010985]
[1767491336926,0.10259914,91087.0,91071.0,0.010985]
[1767491337335,0.10259914,91087.0,91070.0,0.09336]
[1767491337336,0.11358214,91087.0,91070.0,0.09336]
[1767491339322,0.10376087,91087.0,91070.0,0.09336]
[1767491340428,0.10376087,91087.0,91071.0,0.00906183]
[1767491340429,0.010983,91087.0,91071.0,0.00906183]
[1767491341639,0.00016469,91097.0,91083.0,0.10848954]
[1767491341943,0.09352469,91097.0,91084.0,0.00906183]
[1767491342244,0.09352469,91097.0,91083.0,0.09942771]
[1767491342828,0.09352469,91097.0,91081.0,0.010984]
[1767491343241,0.09352469,91097.0,91083.0,0.010983]
[1767491343740,0.09352469,91097.0,91080.0,0.00906183]
[1767491344135,0.00938365,91090.0,91076.0,0.010984]
[1767491344343,0.00938365,91084.0,91073.0,0.09336]
[1767491344835,0.09712432,91085.0,91074.0,0.010984]
[1767491345231,0.09712432,91085.0,91073.0,0.09336]
[1767491345432,0.10810732,91091.0,91073.0,0.09336]
[1767491345628,0.00938365,91089.0,91073.0,0.09336]
[1767491345941,0.10650797,91089.0,91073.0,0.09336]
[1767491346642,0.09712432,91087.0,91066.0,0.00016469]
[1767491346847,0.10650797,91064.0,91048.0,0.09336]
[1767491347045,0.010987,91056.0,91048.0,0.09336]
[1767491347246,0.010987,91056.0,91045.0,0.09336]
[1767491347433,0.10650797,91058.0,91042.0,0.00011212]
[1767491347636,0.010987,91053.0,91039.0,0.09336]
[1767491347941,0.010987,91053.0,91038.0,0.09336]
[1767491348846,0.00011212,91052.0,91038.0,0.09336]
[1767491349737,0.00011212,91052.0,91039.0,0.09336]
[1767491350134,0.00011212,91052.0,91040.0,0.00906183]
[1767491350444,0.00011212,91052.0,91039.0,0.104349]
[1767491350445,0.10810932,91071.0,91050.0,0.010987]
[1767491350631,0.10810932,91071.0,91049.0,0.10848954]
[1767491350632,0.09712432,91071.0,91052.0,0.02004883]
[1767491350836,0.09336,91071.0,91055.0,0.010987]
[1767491351033,0.09336,91071.0,91053.0,0.00906183]
[1767491351246,0.09336,91071.0,91054.0,0.02004883]
[1767491351445,0.09336,91071.0,91054.0,0.00906183]
[1767491352744,0.00016469,91072.0,91054.0,0.10848954]
[1767491352938,0.01114969,91072.0,91056.0,0.10848954]
[1767491353136,0.01114969,91072.0,91053.0,0.00906183]